fUSD/lending_fUSD_20240629
["ID","MTS","AMOUNT","RATE_DAILY","PERIOD"]
[330632972,1719671438270,-1272.0,0.00018128,2]
[330632973,1719671438280,-1312.48,0.00018128,2]
[330632974,1719671438290,-38202.0,0.00018128,2]
[330632975,1719671438300,-693.53,0.00018211,2]
[330632976,1719671438309,-4202.5097,0.00018264,2]
[330632977,1719671438319,-5205.37412667,0.00018322,2]
[330632978,1719671438329,-3098.13933161,0.00018322,2]
[330632979,1719671438339,-235.0411,0.00018367,2]
[330632980,1719671438349,-1027.37490661,0.00018381,2]
[330632981,1719671438358,-151.0,0.00018427,2]
[330632982,1719671438368,-150.0,0.00018467,2]
[330632983,1719671438377,-512.79839912,0.00018585,2]
[330632984,1719671438387,-150.0,0.00018747,2]
[330632985,1719671438397,-150.0,0.00018747,2]
[330632986,1719671438407,-150.0,0.00018747,2]
[330632987,1719671438416,-150.0,0.00018747,2]
[330632988,1719671438426,-301.82,0.00018747,2]
[330632989,1719671438435,-1500.0,0.00018759,2]
[330632990,1719671438445,-1500.0,0.00018759,2]
[330632991,1719671438455,-200.0,0.00018781,2]
[330632992,1719671438464,-5205.37412667,0.00018814,2]
[330632993,1719671438474,-3098.13933161,0.00018814,2]
[330632994,1719671438484,-193.50102493,0.00018835,2]
[330632995,1719671438494,-590.00861069,0.00018835,2]
[330632996,1719671438504,-351.88844729,0.00018848,2]
[330632997,1719671438514,-200.0,0.00018849,2]
[330632998,1719671438523,-24636.66392128,0.00018849,2]
[330632999,1719671438533,-151.0,0.00018924,2]
[330633000,1719671438543,-186.06672756,0.00018964,2]
[330633001,1719671438552,-716.21074661,0.00019098,2]
[330633002,1719671438562,-512.79839912,0.00019142,2]
[330633003,1719671438572,-600.0,0.00019147,2]
[330633004,1719671438582,-177.77,0.00019161,2]
[330633005,1719671438592,-250.0,0.00019178,2]
[330633006,1719671438602,-150.0,0.00019178,2]
[330633007,1719671438612,-321.6970683,0.00019187,2]
[330633008,1719671438622,-225.0,0.000192,2]
[330633009,1719671438634,-356.0,0.000192,2]
[330633010,1719671438643,-10000.0,0.00019224,2]
[330633011,1719671438653,-5205.37412667,0.00019305,2]
[330633012,1719671438663,-3098.13933161,0.00019305,2]
[330633013,1719671438673,-888.54230009,0.00019354,2]
[330633014,1719671438683,-492.75515407,0.00019389,2]
[330633015,1719671438692,-1001.94240103,0.00019404,2]
[330633016,1719671438702,-1016.07743244,0.00019404,2]
[330633017,1719671438711,-151.0,0.00019421,2]
[330633018,1719671438721,-155.1064808,0.00019451,2]
[330633019,1719671438731,-500.0,0.00019641,2]
[330633020,1719671438742,-200.0,0.00019641,2]
[330633021,1719671438751,-474.73023661,0.00019641,2]
[330633022,1719671438764,-25.26976339,0.00019641,2]
[330633023,1719671438773,-200.0,0.00019641,2]
[330633024,1719671438783,-167.92988661,0.00019641,2]
[330633025,1719671438795,-332.07011339,0.00019641,2]
[330633026,1719671438804,-200.0,0.00019641,2]
[330633027,1719671438814,-500.0,0.00019641,2]
[330633028,1719671438826,-500.0,0.00019642,2]
[330633029,1719671438836,-500.0,0.00019642,2]
[330633030,1719671438845,-500.0,0.00019642,2]
[330633031,1719671438855,-500.0,0.00019642,2]
[330633032,1719671438865,-200.0,0.00019642,2]
[330633033,1719671438875,-200.0,0.00019642,2]
[330633034,1719671438885,-200.0,0.00019642,2]
[330633035,1719671438900,-150.0,0.00019683,2]
[330633036,1719671438909,-215.0,0.00019688,2]
[330633037,1719671438919,-512.79839912,0.00019699,2]
[330633038,1719671438928,-150.0,0.00019714,2]
[330633039,1719671438939,-367.86522223,0.00019718,2]
[330633040,1719671438948,-1500.0,0.00019758,2]
[330633041,1719671438958,-929.78261814,0.00019787,2]
[330633042,1719671438972,-3125.94448,0.00019787,2]
[330633043,1719671438984,-26310.69304211,0.00019787,2]
[330633044,1719671439129,-262.99646627,0.00018,2]
[330633045,1719671439139,-18744.2261774,0.00019787,2]
[330633046,1719671439148,-44.24995474,0.00019788,2]
[330633047,1719671439161,-559.37394802,0.00019788,2]
[330633048,1719671439173,-367.18970664,0.00019788,2]
[330633049,1719671439185,-479.24999973,0.00019788,2]
[330633059,1719671440434,-262.99646627,0.00018,2]
[330633061,1719671440445,-262.99646627,0.00018,2]
[330633063,1719671440455,-262.99646627,0.00018,2]
[330633065,1719671440464,-262.99646627,0.00018,2]
[330633067,1719671440474,-262.99646627,0.00018,2]
[330633069,1719671440484,-262.99646627,0.00018,2]
[330633071,1719671440494,-262.99646627,0.00018,2]
[330633073,1719671440504,-262.99646627,0.00018,2]
[330633075,1719671440514,-485.05157163,0.00018919,2]
[330633077,1719671440523,-726.17669821,0.00019177,2]
[330633087,1719671440648,-262.99646627,0.00018,2]
[330633088,1719671440658,-738.75896345,0.00019177,2]
[330633089,1719671440728,-1196.0,0.00018128,2]
[330633090,1719671440738,-650.68144337,0.00018759,2]
[330633092,1719671440748,-625.50090201,0.00018899,2]
[330633094,1719671440758,-23798.05773034,0.00019177,2]
[330633096,1719671440768,-10725.66622147,0.00019788,2]
[330633098,1719671440779,-129005.6877699,0.00019788,2]
[330633100,1719671440789,-5916.0598647,0.00019788,2]
[330633102,1719671440799,-1500.0,0.00019792,2]
[330633104,1719671440810,-5205.37412667,0.00019797,2]
[330633105,1719671440820,-3098.13933161,0.00019797,2]
[330633107,1719671440831,-209.45341844,0.00019799,2]
[330633109,1719671440841,-4364.50397407,0.00019799,2]
[330633110,1719671440851,-1000.0,0.000198,2]
[330633111,1719671440862,-1000.0,0.000198,2]
[330633112,1719671440872,-1000.0,0.000198,2]
[330633113,1719671440883,-1000.0,0.000198,2]
[330633114,1719671440897,-1000.0,0.000198,2]
[330633115,1719671440908,-1000.0,0.000198,2]
[330633116,1719671440918,-1000.0,0.000198,2]
[330633117,1719671440929,-1000.0,0.000198,2]
[330633118,1719671440940,-1000.0,0.000198,2]
[330633119,1719671440949,-1000.0,0.000198,2]
[330633120,1719671440960,-1000.0,0.000198,2]
[330633121,1719671440973,-1000.0,0.000198,2]
[330633122,1719671440984,-1000.0,0.000198,2]
[330633123,1719671440995,-1000.0,0.000198,2]
[330633124,1719671441006,-1000.0,0.000198,2]
[330633125,1719671441017,-1000.0,0.000198,2]
[330633126,1719671441027,-501.03912777,0.000198,2]
[330633157,1719671442909,-262.99646627,0.00018,2]
[330633160,1719671442919,-262.99646627,0.00018,2]
[330633162,1719671442928,-175.40170524,0.00018,2]
[330633165,1719671442941,-87.59476103,0.00018,2]
[330633167,1719671442951,-262.99646627,0.00018,2]
[330633169,1719671442966,-262.99646627,0.00018,2]
[330633171,1719671442977,-262.99646627,0.00018,2]
[330633174,1719671442988,-262.99646627,0.00018,2]
[330633176,1719671442998,-262.99646627,0.00018,2]
[330633178,1719671443008,-262.99646627,0.00018,2]
[330633179,1719671443017,-498.96087223,0.000198,2]
[330633182,1719671443027,-1000.0,0.000198,2]
[330633184,1719671443037,-1000.0,0.000198,2]
[330633186,1719671443046,-1000.0,0.000198,2]
[330633187,1719671443056,-1000.0,0.000198,2]
[330633188,1719671443066,-1000.0,0.000198,2]
[330633189,1719671443076,-1000.0,0.000198,2]
[330633190,1719671443086,-1000.0,0.000198,2]
[330633191,1719671443095,-163.47041426,0.000198,2]
[330633192,1719671443105,-490.0,0.000198,2]
[330633193,1719671443114,-959.88700362,0.000198,2]
[330633194,1719671443127,-723.27767348,0.000198,2]
[330633195,1719671443141,-103039.0406281,0.000198,2]
[330633204,1719671443311,-262.99646627,0.00018,2]
[330633206,1719671443322,-224.55353373,0.000198,2]
[330633208,1719671443334,-701.78153052,0.000198,2]
[330633211,1719671443347,-1779.675,0.000198,2]
[330633213,1719671443359,-10992.66936184,0.000198,2]
[330633215,1719671443371,-10242.55168974,0.000198,2]
[330633221,1719671443415,-6359.11318,0.000198,2]
[330633223,1719671443427,-11856.98439761,0.000198,2]
[330633225,1719671443439,-1706.48451016,0.000198,2]
[330633316,1719671445829,-262.99646627,0.00018,2]
[330633317,1719671445839,-186.12572315,0.00018,2]
[330633318,1719671445851,-76.87074312,0.00018,2]
[330633320,1719671445861,-262.99646627,0.00018,2]
[330633322,1719671445871,-262.99646627,0.00018,2]
[330633323,1719671445881,-262.99646627,0.00018,2]
[330633324,1719671445893,-262.99646627,0.00018,2]
[330633325,1719671445903,-20.8379918,0.00018,2]
[330633326,1719671445954,-242.15847447,0.00018,2]
[330633327,1719671445963,-13.79755727,0.00018,2]
[330633328,1719671445976,-249.198909,0.00018,2]
[330633329,1719671445985,-262.99646627,0.00018,2]
[330633330,1719671445996,-262.99646627,0.00018,2]
[330633331,1719671446006,-262.99646627,0.00018,2]
[330633332,1719671446016,-262.99646627,0.00018,2]
[330633333,1719671446025,-262.99646627,0.00018,2]
[330633334,1719671446035,-1662.0,0.00018128,2]
[330633335,1719671446044,-2182.25198704,0.00019799,2]
[330633336,1719671446054,-304126.73543201,0.000198,2]
[330633337,1719671446063,-1000.0,0.00019801,2]
[330633338,1719671446073,-164.32613464,0.00019886,2]
[330633339,1719671446086,-210.58344958,0.0001989,2]
[330633340,1719671446095,-7500.0,0.0001989,2]
[330633341,1719671446104,-500.0,0.00019899,2]
[330633342,1719671446114,-327.32845718,0.00019899,2]
[330633343,1719671446123,-460.60110964,0.00019899,2]
[330633344,1719671446132,-500.0,0.00019899,2]
[330633345,1719671446141,-500.0,0.00019899,2]
[330633346,1719671446151,-258.69828311,0.00019899,2]
[330633347,1719671446161,-500.0,0.00019899,2]
[330633348,1719671446170,-893.08502989,0.000199,2]
[330633349,1719671446179,-168.42217062,0.000199,2]
[330633350,1719671446188,-174.08619548,0.000199,2]
[330633351,1719671446198,-169.88866675,0.000199,2]
[330633363,1719671446634,-186.06672756,0.000199,2]
[330633364,1719671446647,-109621.17927245,0.000199,2]
[330633365,1719671446656,-404.94609817,0.000199,2]
[330633366,1719671446667,-188.08947512,0.000199,3]
[330633367,1719671446676,-187.95847284,0.000199,2]
[330633368,1719671446685,-8474.84123742,0.000199,2]
[330633369,1719671446695,-8747.78130576,0.000199,2]
[330633370,1719671446704,-151.0,0.00019918,2]
[330633371,1719671446714,-152.0,0.00019925,2]
[330633372,1719671446724,-600.0,0.00019945,2]
[330633373,1719671446734,-3405.348832,0.00019967,2]
[330633374,1719671446744,-267.3522,0.00019967,2]
[330633375,1719671446754,-239.370554,0.00019967,2]
[330633376,1719671446763,-282.582379,0.00019967,2]
[330633377,1719671446773,-151.0,0.00019967,2]
[330633378,1719671446782,-628.6186,0.00019967,2]
[330633379,1719671446791,-151.0,0.00019967,2]
[330633380,1719671446801,-151.0,0.00019986,2]
[330633381,1719671446810,-151.0,0.00019986,2]
[330633382,1719671446819,-151.0,0.00019986,2]
[330633383,1719671446829,-151.0,0.00019986,2]
[330633384,1719671446838,-151.0,0.00019986,2]
[330633385,1719671446848,-31418.67171395,0.00019989,2]
[330633386,1719671447560,-2728.0163992,0.00019989,2]
[330633387,1719671447571,-40961.50295327,0.00019989,2]
[330633388,1719671447624,-262.99646627,0.00018,2]
[330633389,1719671447635,-3429.49537667,0.00019989,2]
[330633390,1719671447646,-246.860265,0.00019989,2]
[330633391,1719671447656,-151.0,0.00019989,2]
[330633392,1719671447666,-151.307137,0.00019989,2]
[330633393,1719671447675,-151.0,0.00019989,2]
[330633394,1719671447685,-584.268281,0.00019989,2]
[330633395,1719671447696,-584.268281,0.00019989,2]
[330633396,1719671447705,-255.577204,0.00019989,2]
[330633397,1719671447715,-151.0,0.00019989,2]
[330633398,1719671447724,-151.0,0.00019989,2]
[330633399,1719671447733,-151.0,0.00019989,2]
[330633400,1719671447744,-151.0,0.00019989,2]
[330633401,1719671447753,-151.0,0.00019989,2]
[330633402,1719671447763,-151.0,0.00019989,2]
[330633403,1719671447772,-151.0,0.00019989,2]
[330633404,1719671447782,-151.0,0.00019989,2]
[330633405,1719671447792,-151.0,0.00019989,2]
[330633406,1719671447801,-4647.5065559,0.0001999,2]
[330633407,1719671447813,-8913.75080272,0.0001999,2]
[330633408,1719671447826,-1910.21270839,0.0001999,2]
[330633409,1719671447838,-13370.55671071,0.0001999,2]
[330633410,1719671447847,-151.0,0.0001999,2]
[330633411,1719671447856,-151.0,0.0001999,2]
[330633412,1719671447865,-151.0,0.0001999,2]
[330633413,1719671447874,-151.0,0.0001999,2]
[330633414,1719671447885,-151.948626,0.0001999,2]
[330633415,1719671447901,-151.0,0.0001999,2]
[330633416,1719671447911,-151.0,0.0001999,2]
[330633417,1719671447922,-151.0,0.0001999,2]
[330633418,1719671447932,-151.595079,0.0001999,2]
[330633419,1719671447942,-829.123028,0.0001999,2]
[330633420,1719671447952,-829.123028,0.0001999,2]
[330633421,1719671447962,-151.0,0.0001999,2]
[330633422,1719671447971,-151.0,0.0001999,2]
[330633423,1719671447980,-217.877369,0.0001999,2]
[330633424,1719671447989,-151.0,0.0001999,2]
[330633425,1719671447999,-217.877369,0.0001999,2]
[330633426,1719671448008,-151.0,0.0001999,2]
[330633427,1719671448018,-151.0,0.0001999,2]
[330633428,1719671448028,-262.443543,0.0001999,2]
[330633429,1719671448037,-151.334627,0.0001999,2]
[330633430,1719671448046,-151.0,0.0001999,2]
[330633431,1719671448056,-151.0,0.0001999,2]
[330633432,1719671448065,-151.0,0.0001999,2]
[330633433,1719671448074,-151.0,0.0001999,2]
[330633434,1719671448083,-151.0,0.0001999,2]
[330633435,1719671448092,-151.0,0.0001999,2]
[330633436,1719671448101,-151.0,0.0001999,2]
[330633437,1719671448111,-151.0,0.0001999,2]
[330633438,1719671448120,-151.0,0.0001999,2]
[330633439,1719671448130,-151.0,0.0001999,2]
[330633440,1719671448139,-151.0,0.0001999,2]
[330633441,1719671448150,-218.701999,0.0001999,2]
[330633442,1719671448160,-218.701999,0.0001999,2]
[330633443,1719671448169,-151.131279,0.0001999,2]
[330633444,1719671448179,-385.071226,0.0001999,2]
[330633445,1719671448188,-277.195157,0.0001999,2]
[330633446,1719671448197,-385.071226,0.0001999,2]
[330633447,1719671448207,-151.69907,0.0001999,2]
[330633448,1719671448216,-151.0,0.0001999,2]
[330633449,1719671448225,-151.0,0.0001999,2]
[330633450,1719671448236,-151.0,0.0001999,2]
[330633451,1719671448246,-151.0,0.0001999,2]
[330633452,1719671448255,-151.0,0.0001999,2]
[330633453,1719671448265,-151.0,0.0001999,2]
[330633454,1719671448274,-151.0,0.0001999,2]
[330633455,1719671448284,-151.0,0.0001999,2]
[330633456,1719671448293,-151.0,0.0001999,2]
[330633457,1719671448303,-151.0,0.0001999,2]
[330633458,1719671448313,-808.562046,0.0001999,2]
[330633459,1719671448321,-151.740638,0.0001999,2]
[330633460,1719671448331,-808.562046,0.0001999,2]
[330633461,1719671448341,-151.0,0.0001999,2]
[330633462,1719671448351,-151.0,0.0001999,2]
[330633463,1719671448362,-430.825074,0.0001999,2]
[330633464,1719671448372,-430.825074,0.0001999,2]
[330633465,1719671448383,-151.0,0.0001999,2]
[330633466,1719671448392,-152.344066,0.0001999,2]
[330633467,1719671448402,-341.129039,0.0001999,2]
[330633468,1719671448411,-151.0,0.0001999,2]
[330633469,1719671448420,-341.129039,0.0001999,2]
[330633470,1719671448428,-3950.239951,0.0001999,2]
[330633471,1719671448438,-3950.239951,0.0001999,2]
[330633472,1719671448447,-200.209296,0.0001999,2]
[330633473,1719671448456,-372.610913,0.0001999,2]
[330633474,1719671448467,-200.209296,0.0001999,2]
[330633475,1719671448476,-372.610913,0.0001999,2]
[330633476,1719671448486,-499.499,0.0001999,2]
[330633477,1719671448496,-209.429046,0.00019999,2]
[330633478,1719671448505,-151.0,0.00019999,2]
[330633479,1719671448515,-150.0,0.00019999,2]
[330633480,1719671448524,-386.49021252,0.00019999,2]
[330633493,1719672153611,745.54,0.00010959,2]
[330633495,1719672404556,156.88,0.00018849,30]
[330633501,1719672561103,-264.57347071,0.00011197,2]
[330633502,1719672561124,-300.0,0.00012267,2]
[330633503,1719672561143,-2071.7206231,0.00012268,2]
[330633523,1719672632525,-193.16948895,0.00012258,2]
[330633524,1719672632536,-300.0,0.00012267,2]
[330633525,1719672632545,-818.98051105,0.00012268,2]
[330633526,1719672632650,-20948.78387723,0.00012268,2]
[330633527,1719672632780,-4781.02268136,0.00012268,2]
[330633548,1719672638225,-74576.28414525,0.00012268,2]
[330633589,1719672643494,-182727.67469422,0.00012268,2]
[330633590,1719672643506,-34484.70500744,0.00012268,2]
[330633596,1719672647042,-44318.85102718,0.00012268,2]
[330633597,1719672647054,-322.66162028,0.00012268,2]
[330633598,1719672647095,-2123.68949959,0.00012268,2]
[330633600,1719672669037,166.95,0.00010778,2]
[330633615,1719672974940,-300.0,0.00011198,2]
[330633616,1719672974964,-167.0,0.00011198,2]
[330633617,1719672974987,-15427.22902033,0.00011199,2]
[330633619,1719673083993,8980.93448355,0.00011199,2]
[330633620,1719673101975,1000.0,0.00011263,2]
[330633621,1719673160468,201.93664561,0.00011199,2]
[330633632,1719673404263,888.54230009,0.00011199,2]
[330633646,1719673530562,4018.22411523,0.00011199,2]
[330633647,1719673589310,308.31366619,0.00011199,2]
[330633648,1719673590031,589.5,0.00011038,2]
[330633649,1719673657547,727.88837222,0.00011199,2]
[330633652,1719673833155,-707.07731665,0.0001149,2]
[330633653,1719673833172,-629.99914214,0.0001149,2]
[330633654,1719673833185,-1213.93749004,0.0001149,2]
[330633657,1719673833198,-334.61,0.0001149,2]
[330633669,1719673833301,-371.6925449,0.0001149,2]
[330633670,1719673833316,-3111.40281369,0.0001149,2]
[330633671,1719673833327,-87423.75396052,0.0001149,2]
[330633672,1719673833440,-26564.58581235,0.0001149,2]
[330633673,1719673833452,-876.11960137,0.0001149,2]
[330633674,1719673833463,-300.0,0.0001149,2]
[330633675,1719673833474,-11145.48513659,0.0001149,2]
[330633676,1719673833485,-4020.05519747,0.0001149,2]
[330633677,1719673833496,-521.124372,0.0001149,2]
[330633682,1719673833628,-58557.72620328,0.0001149,2]
[330633683,1719673833637,-1660.338,0.0001149,2]
[330633684,1719673833647,-1286.09952958,0.0001149,2]
[330633685,1719673833656,-344.28606759,0.00011926,2]
[330633686,1719673833665,-2447.5415,0.00012168,2]
[330633687,1719673833674,-715.55226,0.00012268,2]
[330633688,1719673833683,-155.0,0.00012314,2]
[330633689,1719673833693,-1536.13018865,0.0001251,2]
[330633690,1719673833703,-250.0,0.00012629,2]
[330633691,1719673833712,-150.99,0.00012629,2]
[330633692,1719673833722,-250.0,0.00012714,2]
[330633693,1719673833731,-1000.0,0.00012716,2]
[330633694,1719673833743,-23900.0,0.00012766,2]
[330633695,1719673833754,-499.99,0.00013051,2]
[330633696,1719673833764,-174.58594608,0.00013128,2]
[330633697,1719673833774,-193.50102493,0.00013128,2]
[330633698,1719673833785,-150.14,0.00013162,2]
[330633699,1719673833794,-589.5,0.00013302,2]
[330633700,1719673833803,-715.55227,0.0001334,2]
[330633701,1719673833816,-2574.14215703,0.00013516,2]
[330633702,1719673833831,-155.0,0.00013543,2]
[330633703,1719673833840,-908.03737989,0.00013574,2]
[330633704,1719673833850,-177.15,0.00013699,2]
[330633705,1719673833859,-150.0,0.00013753,2]
[330633706,1719673833868,-3022.81708204,0.00013759,2]
[330633707,1719673833877,-3079.41143443,0.00013759,2]
[330633708,1719673833887,-3123.22447601,0.0001379,2]
[330633709,1719673833896,-3123.22447601,0.0001379,2]
[330633710,1719673833905,-3123.22447601,0.0001379,2]
[330633711,1719673833915,-1873.9390456,0.00013799,2]
[330633712,1719673833924,-1873.93904552,0.00013799,2]
[330633713,1719673833934,-1873.93904552,0.00013799,2]
[330633714,1719673833945,-300.0,0.000138,5]
[330633715,1719673833954,-1770.27163359,0.0001387,2]
[330633716,1719673833964,-220.05,0.0001389,2]
[330633717,1719673833974,-3338.75149435,0.00013899,2]
[330633718,1719673833983,-1839.0515,0.000139,2]
[330633719,1719673833993,-600.0,0.000139,5]
[330633720,1719673834002,-5305.62199108,0.00013946,2]
[330633721,1719673834011,-164.3261346,0.00013946,2]
[330633722,1719673834021,-168.42217057,0.00013946,2]
[330633723,1719673834030,-169.88866674,0.00013946,2]
[330633724,1719673834039,-202.35692158,0.00013946,2]
[330633725,1719673834048,-256.39919956,0.00013946,2]
[330633726,1719673834060,-321.69706828,0.00013946,2]
[330633727,1719673834069,-193.16948895,0.0001399,2]
[330633728,1719673834078,-300.0,0.00013999,2]
[330633729,1719673834088,-300.0,0.00013999,2]
[330633730,1719673834097,-300.0,0.00013999,2]
[330633731,1719673834106,-300.0,0.00013999,2]
[330633732,1719673834116,-300.0,0.00013999,2]
[330633733,1719673834125,-300.0,0.00013999,2]
[330633734,1719673834134,-300.0,0.00013999,2]
[330633735,1719673834143,-300.0,0.00013999,2]
[330633736,1719673834153,-300.0,0.00013999,2]
[330633737,1719673834162,-441.87174181,0.00013999,2]
[330633738,1719673834171,-833368.07788956,0.00014,2]
[330633739,1719673834183,-4667.47387818,0.00014,2]
[330633745,1719673838386,-10287.06687749,0.00014,2]
[330633746,1719673838399,-1275.15327242,0.00014,2]
[330633747,1719673838522,-31103.04666917,0.00014,2]
[330633748,1719673838536,-347.45730963,0.00014,2]
[330633749,1719673838549,-1173.56700628,0.00014,2]
[330633750,1719673838564,-4470.90884912,0.00014,2]
[330633751,1719673838576,-5641.70032621,0.00014,2]
[330633752,1719673838589,-710.733,0.00014,2]
[330633753,1719673838602,-18442.4078046,0.00014,2]
[330633754,1719673838706,-410.97921533,0.00014,2]
[330633755,1719673838719,-250.39418971,0.00014,2]
[330633756,1719673838732,-4069.7644186,0.00014,2]
[330633757,1719673838749,-74423.64315114,0.00014,2]
[330633758,1719673838760,-152.64099411,0.00014046,2]
[330633777,1719673842752,-21.55900589,0.00014046,2]
[330633778,1719673842762,-1000.0,0.00014306,2]
[330633779,1719673842773,-715.55227,0.0001459,2]
[330633780,1719673842783,-5305.62199103,0.00014711,2]
[330633781,1719673842793,-1873.93904552,0.00014939,2]
[330633782,1719673842804,-3123.22447601,0.00014939,2]
[330633783,1719673842815,-1500.0,0.00014966,2]
[330633784,1719673842828,-43451.47829867,0.00015,2]
[330633785,1719673842840,-7757.88693586,0.00015,2]
[330633786,1719673842853,-7260.00000008,0.00015,2]
[330633787,1719673842865,-3358.8323994,0.00015,2]
[330633788,1719673842878,-280.17503391,0.00015,2]
[330633789,1719673842891,-1293.13248897,0.00015,2]
[330633790,1719673842903,-1853.6965244,0.00015,2]
[330633831,1719673843816,-5855.192074,0.00015,2]
[330633832,1719673843830,-930.552031,0.00015,2]
[330633833,1719673843870,-0.00470767,0.00015,2]
[330633834,1719673844010,-2547.67469422,0.00015,2]
[330633835,1719673844023,-5575.74792933,0.00015,2]
[330633836,1719673844032,-10322.43905043,0.00015,2]
[330633837,1719673844042,-5000.0,0.00015,2]
[330633838,1719673844052,-3973.69192874,0.00015,2]
[330633839,1719673844062,-150.0,0.00015,2]
[330633840,1719673844073,-150.0,0.00015,2]
[330633841,1719673844082,-239.54811607,0.00015,2]
[330633842,1719673844092,-150.0,0.00015,2]
[330633843,1719673844102,-256.39919956,0.00015066,2]
[330633844,1719673844112,-701.0,0.000154,2]
[330633845,1719673844122,-3309.0,0.000154,2]
[330633846,1719673844132,-5305.62199103,0.00015477,2]
[330633847,1719673844142,-12758.73684644,0.00015535,2]
[330633848,1719673844151,-250.0,0.00015548,2]
[330633849,1719673844161,-190.00481984,0.00015548,2]
[330633850,1719673844171,-250.0,0.00015548,2]
[330633851,1719673844181,-589.5,0.00015565,2]
[330633852,1719673844190,-715.55227,0.0001584,2]
[330633853,1719673844200,-1000.0,0.00015895,2]
[330633854,1719673844210,-168.42217057,0.00015969,2]
[330633855,1719673844219,-314.67131539,0.00016096,2]
[330633856,1719673844228,-350.0,0.00016096,2]
[330633857,1719673844238,-1873.93904552,0.00016122,2]
[330633858,1719673844248,-3123.22447601,0.00016122,2]
[330633859,1719673844258,-256.39919956,0.00016186,2]
[330633860,1719673844267,-5305.62199103,0.00016242,2]
[330633861,1719673844277,-625.50090201,0.00016315,2]
[330633862,1719673844287,-164.3261346,0.00016557,2]
[330633863,1719673844296,-597.54123423,0.00016644,2]
[330633864,1719673844306,-204.0,0.0001698,2]
[330633865,1719673844316,-299.0,0.0001698,2]
[330633866,1719673844326,-2000.0,0.00016986,3]
[330633867,1719673844336,-5305.62199103,0.00017007,2]
[330633868,1719673844346,-715.55227,0.0001709,2]
[330633869,1719673844356,-309.83496123,0.00017159,2]
[330633870,1719673844366,-167.29943857,0.00017199,2]
[330633871,1719673844375,-291.0,0.00017258,2]
[330633872,1719673844385,-30978.887,0.00017258,2]
[330633873,1719673844395,-5172.0,0.00017258,2]
[330633874,1719673844404,-1557.017,0.00017258,2]
[330633875,1719673844414,-1069.0,0.00017258,2]
[330633876,1719673844423,-1873.93904552,0.00017304,2]
[330633877,1719673844434,-3123.22447601,0.00017304,2]
[330633878,1719673844443,-256.39919956,0.00017306,2]
[330633879,1719673844453,-227.02046916,0.00017444,2]
[330633880,1719673844463,-227.02046916,0.00017444,2]
[330633881,1719673844472,-6366.2773535,0.00017464,2]
[330633882,1719673844481,-1000.0,0.00017485,2]
[330633883,1719673844491,-5305.62199103,0.00017773,2]
[330633884,1719673844501,-589.5,0.00017829,2]
[330633885,1719673844511,-150.0,0.00017944,2]
[330633886,1719673844520,-150.0,0.00017944,2]
[330633887,1719673844531,-150.0,0.00017975,2]
[330633888,1719673844542,-168.42217057,0.00017991,2]
[330633889,1719673844552,-151.0,0.00018,2]
[330633890,1719673844562,-151.0,0.00018,2]
[330633891,1719673844572,-151.0,0.00018,2]
[330633892,1719673844582,-224.291043,0.00018,2]
[330633893,1719673844592,-151.0,0.00018,2]
[330633894,1719673844602,-151.0,0.00018,2]
[330633895,1719673844612,-151.0,0.00018,2]
[330633896,1719673844621,-151.0,0.00018,2]
[330633897,1719673844632,-182.44464907,0.00018,2]
[330633898,1719673844642,-182.44464907,0.00018,2]
[330633899,1719673844651,-182.44464907,0.00018,2]
[330633900,1719673844661,-182.44464907,0.00018,2]